[Event "Titled Tuesday Blitz August 17 2021"]
[White "Demchenko, Anton"]
[Black "Quintiliano Pinto, Renato R."]
[WhiteFideId "4160258"]
[BlackFideId "2117568"]
[WhiteElo "2583"]
[BlackElo "2439"]
[Result "1-0"]
[Round "05"]
[TimeControl "180+1"]
[Date "2021.08.17"]
[WhiteClock "0:00:04"]
[BlackClock "0:00:02"]

1. e4 {[%clk 0:02:59]}  c5 {[%clk 0:02:59]} 2. Nf3 {[%clk 0:02:58]}  d6 {[%clk 0:02:59]} 3. d4 {[%clk 0:02:58]}  cxd4 {[%clk 0:03:00]} 4. Nxd4 {[%clk 0:02:58]}  Nf6 {[%clk 0:03:00]} 5. Nc3 {[%clk 0:02:58]}  a6 {[%clk 0:03:00]} 6. Bc4 {[%clk 0:02:57]}  e6 {[%clk 0:03:00]} 7. Be3 {[%clk 0:02:55]}  b5 {[%clk 0:02:47]} 8. Bb3 {[%clk 0:02:55]}  Be7 {[%clk 0:02:45]} 9. f3 {[%clk 0:02:54]}  O-O {[%clk 0:02:42]} 10. Qe2 {[%clk 0:02:49]}  b4 {[%clk 0:02:36]} 11. Nd1 {[%clk 0:02:35]}  a5 {[%clk 0:02:27]} 12. c4 {[%clk 0:02:30]}  Bd7 {[%clk 0:02:16]} 13. O-O {[%clk 0:02:25]}  Na6 {[%clk 0:02:14]} 14. Nf2 {[%clk 0:02:21]}  Nc5 {[%clk 0:02:08]} 15. Rfd1 {[%clk 0:02:20]}  Qb8 {[%clk 0:01:59]} 16. Bc2 {[%clk 0:02:18]}  Re8 {[%clk 0:01:53]} 17. Nb5 {[%clk 0:02:13]}  d5 {[%clk 0:01:43]} 18. Nd4 {[%clk 0:01:41]}  Bf8 {[%clk 0:00:59]} 19. Bg5 {[%clk 0:01:25]}  Nh5 {[%clk 0:00:20]} 20. e5 {[%clk 0:01:25]}  h6 {[%clk 0:00:19]} 21. Bd2 {[%clk 0:01:21]}  g6 {[%clk 0:00:12]} 22. f4 {[%clk 0:01:19]}  Ng7 {[%clk 0:00:09]} 23. Ng4 {[%clk 0:01:18]}  Nh5 {[%clk 0:00:07]} 24. Be3 {[%clk 0:01:06]}  Qb7 {[%clk 0:00:06]} 25. Rac1 {[%clk 0:00:55]}  dxc4 {[%clk 0:00:05]} 26. Qxc4 {[%clk 0:00:55]}  Rac8 {[%clk 0:00:05]} 27. Qe2 {[%clk 0:00:55]}  a4 {[%clk 0:00:04]} 28. b3 {[%clk 0:00:51]}  axb3 {[%clk 0:00:04]} 29. axb3 {[%clk 0:00:52]}  Red8 {[%clk 0:00:02]} 30. Nf2 {[%clk 0:00:48]}  Ng7 {[%clk 0:00:02]} 31. Ng4 {[%clk 0:00:30]}  Nh5 {[%clk 0:00:02]} 32. Qf2 {[%clk 0:00:20]}  Bc6 {[%clk 0:00:02]} 33. Nxc6 {[%clk 0:00:14]}  Qxc6 {[%clk 0:00:01]} 34. Rxd8 {[%clk 0:00:13]}  Rxd8 {[%clk 0:00:02]} 35. h3 {[%clk 0:00:10]}  Ne4 {[%clk 0:00:02]} 36. Qh4 {[%clk 0:00:08]}  Nc3 {[%clk 0:00:01]} 37. Qxd8 {[%clk 0:00:06]}  Ne2+ {[%clk 0:00:01]} 38. Kf2 {[%clk 0:00:07]}  Nxc1 {[%clk 0:00:02]} 39. Nxh6+ {[%clk 0:00:05]}  Kg7 {[%clk 0:00:03]} 40. Bb1 {[%clk 0:00:04]}  Nxb3 {[%clk 0:00:02]} 41. f5 {[%clk 0:00:05]}  Nc5 {[%clk 0:00:02]} 42. f6+ {[%clk 0:00:04]}  Kh7 {[%clk 0:00:02]} 43. Qxf8 {[%clk 0:00:04]} 1-0


[Site "https://www.chess.com"]

[Event "Titled Tuesday Blitz August 17 2021"]
[White "Dev, Shah"]
[Black "Nogerbek, Kazybek"]
[WhiteFideId "35019058"]
[BlackFideId "13710427"]
[WhiteElo "2098"]
[BlackElo "2436"]
[Result "0-1"]
[Round "05"]
[TimeControl "180+1"]
[Date "2021.08.17"]
[WhiteClock "0:00:02"]
[BlackClock "0:00:07"]

1. d4 {[%clk 0:03:00]}  Nf6 {[%clk 0:02:57]} 2. c4 {[%clk 0:03:00]}  e6 {[%clk 0:02:58]} 3. Nf3 {[%clk 0:02:59]}  a6 {[%clk 0:02:57]} 4. Nc3 {[%clk 0:02:58]}  d5 {[%clk 0:02:57]} 5. Bg5 {[%clk 0:02:55]}  dxc4 {[%clk 0:02:30]} 6. e4 {[%clk 0:02:49]}  b5 {[%clk 0:02:31]} 7. e5 {[%clk 0:02:47]}  h6 {[%clk 0:02:31]} 8. Bh4 {[%clk 0:02:45]}  g5 {[%clk 0:02:31]} 9. Nxg5 {[%clk 0:02:43]}  hxg5 {[%clk 0:02:31]} 10. Bxg5 {[%clk 0:02:44]}  Nbd7 {[%clk 0:02:30]} 11. Qf3 {[%clk 0:02:12]}  Rb8 {[%clk 0:02:23]} 12. exf6 {[%clk 0:02:10]}  Bb7 {[%clk 0:02:22]} 13. Qe3 {[%clk 0:01:55]}  Nb6 {[%clk 0:02:13]} 14. f3 {[%clk 0:01:41]}  Bb4 {[%clk 0:02:05]} 15. O-O-O {[%clk 0:01:19]}  Nd5 {[%clk 0:01:55]} 16. Nxd5 {[%clk 0:01:17]}  Bxd5 {[%clk 0:01:50]} 17. Bf4 {[%clk 0:01:10]}  Rc8 {[%clk 0:01:18]} 18. Be5 {[%clk 0:01:06]}  c6 {[%clk 0:01:14]} 19. Be2 {[%clk 0:00:57]}  Qa5 {[%clk 0:01:12]} 20. a3 {[%clk 0:00:55]}  c3 {[%clk 0:01:11]} 21. axb4 {[%clk 0:00:22]}  Qa1+ {[%clk 0:01:07]} 22. Kc2 {[%clk 0:00:23]}  Qxb2+ {[%clk 0:00:45]} 23. Kd3 {[%clk 0:00:23]}  Bc4+ {[%clk 0:00:37]} 24. Ke4 {[%clk 0:00:23]}  Bxe2 {[%clk 0:00:37]} 25. Rc1 {[%clk 0:00:20]}  Bc4 {[%clk 0:00:32]} 26. Qxc3 {[%clk 0:00:15]}  Qxg2 {[%clk 0:00:22]} 27. Bf4 {[%clk 0:00:07]}  Qe2+ {[%clk 0:00:19]} 28. Qe3 {[%clk 0:00:06]}  Bd5+ {[%clk 0:00:19]} 29. Ke5 {[%clk 0:00:06]}  Qxe3+ {[%clk 0:00:07]} 30. Bxe3 {[%clk 0:00:06]}  Rh5+ {[%clk 0:00:07]} 31. Kd6 {[%clk 0:00:04]}  Bxf3 {[%clk 0:00:08]} 32. Rhg1 {[%clk 0:00:02]}  Rd5# {[%clk 0:00:07]} 0-1


[Site "https://www.chess.com"]

[Event "Titled Tuesday Blitz August 17 2021"]
[White "Durarbayli, Vasif"]
[Black "Bobkov, Vadim"]
[WhiteFideId "13402935"]
[BlackFideId "34110876"]
[WhiteElo "2522"]
[BlackElo "2117"]
[Result "1-0"]
[Round "05"]
[TimeControl "180+1"]
[Date "2021.08.17"]
[WhiteClock "0:00:33"]
[BlackClock "0:00:01"]

1. d4 {[%clk 0:03:00]}  d5 {[%clk 0:02:56]} 2. c4 {[%clk 0:03:00]}  e6 {[%clk 0:02:56]} 3. Nc3 {[%clk 0:03:00]}  c6 {[%clk 0:02:57]} 4. Nf3 {[%clk 0:02:57]}  Nf6 {[%clk 0:02:57]} 5. e3 {[%clk 0:02:54]}  Nbd7 {[%clk 0:02:57]} 6. Qc2 {[%clk 0:02:54]}  Bd6 {[%clk 0:02:55]} 7. Bd3 {[%clk 0:02:54]}  dxc4 {[%clk 0:02:54]} 8. Bxc4 {[%clk 0:02:53]}  O-O {[%clk 0:02:55]} 9. O-O {[%clk 0:02:50]}  Qe7 {[%clk 0:02:53]} 10. h3 {[%clk 0:02:20]}  b5 {[%clk 0:02:39]} 11. Bb3 {[%clk 0:01:53]}  Bb7 {[%clk 0:02:38]} 12. e4 {[%clk 0:01:51]}  e5 {[%clk 0:02:38]} 13. dxe5 {[%clk 0:01:49]}  Nxe5 {[%clk 0:02:38]} 14. Nh4 {[%clk 0:01:39]}  g6 {[%clk 0:02:06]} 15. f4 {[%clk 0:01:28]}  Bc5+ {[%clk 0:02:03]} 16. Kh2 {[%clk 0:01:23]}  Ned7 {[%clk 0:00:19]} 17. e5 {[%clk 0:01:09]}  Nd5 {[%clk 0:00:15]} 18. Nxd5 {[%clk 0:01:03]}  cxd5 {[%clk 0:00:16]} 19. Nf3 {[%clk 0:01:00]}  d4 {[%clk 0:00:16]} 20. Qd3 {[%clk 0:00:55]}  Rad8 {[%clk 0:00:10]} 21. Qxb5 {[%clk 0:00:54]}  Nb8 {[%clk 0:00:08]} 22. f5 {[%clk 0:00:51]}  Ba6 {[%clk 0:00:06]} 23. Qa5 {[%clk 0:00:46]}  Bxf1 {[%clk 0:00:06]} 24. f6 {[%clk 0:00:46]}  Qb7 {[%clk 0:00:03]} 25. Qxc5 {[%clk 0:00:45]}  Rc8 {[%clk 0:00:03]} 26. Qxd4 {[%clk 0:00:43]}  Nd7 {[%clk 0:00:02]} 27. Bh6 {[%clk 0:00:40]}  Rfd8 {[%clk 0:00:01]} 28. Bxf7+ {[%clk 0:00:34]}  Kxf7 {[%clk 0:00:01]} 29. Ng5+ {[%clk 0:00:34]}  Ke8 {[%clk 0:00:01]} 30. f7+ {[%clk 0:00:34]}  Ke7 {[%clk 0:00:01]} 31. Qd6# {[%clk 0:00:33]} 1-0


[Site "https://www.chess.com"]

[Event "Titled Tuesday Blitz August 17 2021"]
[White "Esenbek Uulu, Ilimbek"]
[Black "Bazarov, Konstantin"]
[WhiteFideId "13800680"]
[BlackFideId "4137000"]
[WhiteElo "2103"]
[BlackElo "2122"]
[Result "0-1"]
[Round "05"]
[TimeControl "180+1"]
[Date "2021.08.18"]
[WhiteClock "0:00:02"]
[BlackClock "0:00:07"]

1. e4 {[%clk 0:02:42]}  d5 {[%clk 0:02:58]} 2. exd5 {[%clk 0:02:41]}  Qxd5 {[%clk 0:02:59]} 3. Nc3 {[%clk 0:02:40]}  Qd6 {[%clk 0:02:59]} 4. d4 {[%clk 0:02:40]}  Nf6 {[%clk 0:02:59]} 5. Nf3 {[%clk 0:02:38]}  a6 {[%clk 0:02:59]} 6. Ne5 {[%clk 0:02:31]}  Nc6 {[%clk 0:02:58]} 7. Bf4 {[%clk 0:02:02]}  Bf5 {[%clk 0:02:56]} 8. Bc4 {[%clk 0:01:48]}  e6 {[%clk 0:02:46]} 9. Bb3 {[%clk 0:01:34]}  Qxd4 {[%clk 0:02:35]} 10. Qxd4 {[%clk 0:01:21]}  Nxd4 {[%clk 0:02:33]} 11. O-O-O {[%clk 0:01:21]}  Nxb3+ {[%clk 0:02:17]} 12. axb3 {[%clk 0:01:22]}  Bd6 {[%clk 0:02:13]} 13. f3 {[%clk 0:01:21]}  h5 {[%clk 0:02:10]} 14. Rhe1 {[%clk 0:01:19]}  O-O {[%clk 0:02:00]} 15. Bg5 {[%clk 0:01:12]}  Nh7 {[%clk 0:01:54]} 16. Bh4 {[%clk 0:01:08]}  Rfe8 {[%clk 0:01:39]} 17. h3 {[%clk 0:01:02]}  f6 {[%clk 0:01:33]} 18. Nc4 {[%clk 0:01:02]}  Bf4+ {[%clk 0:01:24]} 19. Kb1 {[%clk 0:01:02]}  Nf8 {[%clk 0:01:15]} 20. Bf2 {[%clk 0:01:00]}  Rad8 {[%clk 0:01:11]} 21. g4 {[%clk 0:00:59]}  Bg6 {[%clk 0:01:09]} 22. Na5 {[%clk 0:00:53]}  b6 {[%clk 0:01:04]} 23. Nc6 {[%clk 0:00:52]}  Ra8 {[%clk 0:00:56]} 24. Ne4 {[%clk 0:00:50]}  hxg4 {[%clk 0:00:53]} 25. hxg4 {[%clk 0:00:49]}  f5 {[%clk 0:00:51]} 26. Ng3 {[%clk 0:00:32]}  fxg4 {[%clk 0:00:46]} 27. fxg4 {[%clk 0:00:33]}  e5 {[%clk 0:00:32]} 28. Ne4 {[%clk 0:00:32]}  a5 {[%clk 0:00:28]} 29. Bh4 {[%clk 0:00:31]}  Kf7 {[%clk 0:00:26]} 30. Re2 {[%clk 0:00:28]}  Bh7 {[%clk 0:00:24]} 31. Rf1 {[%clk 0:00:27]}  Ne6 {[%clk 0:00:20]} 32. Nxe5+ {[%clk 0:00:23]}  Kg8 {[%clk 0:00:20]} 33. Nc6 {[%clk 0:00:16]}  Rac8 {[%clk 0:00:17]} 34. g5 {[%clk 0:00:14]}  Bg6 {[%clk 0:00:16]} 35. Nc3 {[%clk 0:00:10]}  Bxg5 {[%clk 0:00:15]} 36. Bg3 {[%clk 0:00:09]}  Bf6 {[%clk 0:00:14]} 37. Nd5 {[%clk 0:00:09]}  Kf7 {[%clk 0:00:14]} 38. Nxf6 {[%clk 0:00:08]}  gxf6 {[%clk 0:00:14]} 39. Bh4 {[%clk 0:00:09]}  f5 {[%clk 0:00:14]} 40. Ne5+ {[%clk 0:00:08]}  Kg7 {[%clk 0:00:14]} 41. Rg2 {[%clk 0:00:08]}  Nf8 {[%clk 0:00:14]} 42. Nxg6 {[%clk 0:00:08]}  Nxg6 {[%clk 0:00:13]} 43. Rxf5 {[%clk 0:00:08]}  Re6 {[%clk 0:00:13]} 44. Bf2 {[%clk 0:00:07]}  Rf8 {[%clk 0:00:13]} 45. Bd4+ {[%clk 0:00:07]}  Kh7 {[%clk 0:00:12]} 46. Rh5+ {[%clk 0:00:07]}  Kg8 {[%clk 0:00:11]} 47. Rh8+ {[%clk 0:00:06]}  Kf7 {[%clk 0:00:10]} 48. Rf2+ {[%clk 0:00:06]}  Ke8 {[%clk 0:00:10]} 49. Rhxf8+ {[%clk 0:00:06]}  Nxf8 {[%clk 0:00:10]} 50. Bc3 {[%clk 0:00:06]}  c5 {[%clk 0:00:10]} 51. Ka2 {[%clk 0:00:06]}  Nd7 {[%clk 0:00:10]} 52. Rd2 {[%clk 0:00:06]}  Nb8 {[%clk 0:00:10]} 53. Rd5 {[%clk 0:00:06]}  Nc6 {[%clk 0:00:10]} 54. Rh5 {[%clk 0:00:07]}  b5 {[%clk 0:00:10]} 55. Bg7 {[%clk 0:00:06]}  Kd7 {[%clk 0:00:10]} 56. Bh8 {[%clk 0:00:06]}  Nb4+ {[%clk 0:00:10]} 57. Ka3 {[%clk 0:00:04]}  Nxc2+ {[%clk 0:00:09]} 58. Ka2 {[%clk 0:00:04]}  Kc6 {[%clk 0:00:10]} 59. Rh1 {[%clk 0:00:03]}  Nb4+ {[%clk 0:00:10]} 60. Ka3 {[%clk 0:00:02]}  Rg6 {[%clk 0:00:10]} 61. Bc3 {[%clk 0:00:01]}  Kb6 {[%clk 0:00:09]} 62. Bxb4 {[%clk 0:00:01]}  cxb4+ {[%clk 0:00:08]} 63. Ka2 {[%clk 0:00:02]}  a4 {[%clk 0:00:08]} 64. Rf1 {[%clk 0:00:02]}  Ka5 {[%clk 0:00:08]} 65. bxa4 {[%clk 0:00:02]}  bxa4 {[%clk 0:00:07]} 0-1


[Site "https://www.chess.com"]

[Event "Titled Tuesday Blitz August 17 2021"]
[White "Golizadeh, Asghar"]
[Black "Benyahia, Safin"]
[WhiteFideId "12505269"]
[BlackFideId "7905556"]
[WhiteElo "2403"]
[BlackElo "1551"]
[Result "0-1"]
[Round "05"]
[TimeControl "180+1"]
[Date "2021.08.18"]
[WhiteClock "0:00:17"]
[BlackClock "0:00:17"]

1. e4 {[%clk 0:03:00]}  c5 {[%clk 0:02:57]} 2. Nf3 {[%clk 0:02:59]}  d6 {[%clk 0:02:57]} 3. Bb5+ {[%clk 0:02:59]}  Bd7 {[%clk 0:02:56]} 4. Bxd7+ {[%clk 0:02:59]}  Qxd7 {[%clk 0:02:55]} 5. O-O {[%clk 0:03:00]}  Nc6 {[%clk 0:02:54]} 6. Qe2 {[%clk 0:03:01]}  e6 {[%clk 0:02:54]} 7. c3 {[%clk 0:03:01]}  Nf6 {[%clk 0:02:53]} 8. Rd1 {[%clk 0:03:02]}  Be7 {[%clk 0:02:51]} 9. d4 {[%clk 0:03:02]}  cxd4 {[%clk 0:02:51]} 10. cxd4 {[%clk 0:03:02]}  O-O {[%clk 0:02:48]} 11. Nc3 {[%clk 0:03:02]}  a6 {[%clk 0:02:48]} 12. d5 {[%clk 0:02:47]}  exd5 {[%clk 0:02:25]} 13. Nxd5 {[%clk 0:02:36]}  Nxd5 {[%clk 0:02:15]} 14. Rxd5 {[%clk 0:02:37]}  Rac8 {[%clk 0:02:10]} 15. Bf4 {[%clk 0:02:35]}  Nb4 {[%clk 0:02:09]} 16. Rd2 {[%clk 0:02:33]}  Rfd8 {[%clk 0:02:02]} 17. a3 {[%clk 0:02:32]}  Nc6 {[%clk 0:01:59]} 18. Rad1 {[%clk 0:02:32]}  Qe6 {[%clk 0:01:57]} 19. Qd3 {[%clk 0:02:29]}  Ne5 {[%clk 0:01:50]} 20. Bxe5 {[%clk 0:02:04]}  dxe5 {[%clk 0:01:49]} 21. Qxd8+ {[%clk 0:02:04]}  Rxd8 {[%clk 0:01:40]} 22. Rxd8+ {[%clk 0:02:04]}  Bf8 {[%clk 0:01:41]} 23. Rb8 {[%clk 0:01:51]}  Qc6 {[%clk 0:01:39]} 24. Nxe5 {[%clk 0:01:15]}  Qc2 {[%clk 0:01:27]} 25. Rbd8 {[%clk 0:01:09]}  g6 {[%clk 0:01:17]} 26. g3 {[%clk 0:00:44]}  Kg7 {[%clk 0:01:09]} 27. R8d7 {[%clk 0:00:41]}  Qxe4 {[%clk 0:01:02]} 28. Rxf7+ {[%clk 0:00:27]}  Kh6 {[%clk 0:00:54]} 29. Rxf8 {[%clk 0:00:18]}  Qxe5 {[%clk 0:00:53]} 30. h4 {[%clk 0:00:19]}  Qxb2 {[%clk 0:00:48]} 31. Rf7 {[%clk 0:00:17]}  Qb3 {[%clk 0:00:47]} 32. Rdd7 {[%clk 0:00:16]}  Kh5 {[%clk 0:00:38]} 33. Rxh7+ {[%clk 0:00:11]}  Kg4 {[%clk 0:00:38]} 34. Rd4+ {[%clk 0:00:10]}  Kh3 {[%clk 0:00:24]} 35. Rhd7 {[%clk 0:00:06]}  Qb1+ {[%clk 0:00:13]} 36. Rd1 {[%clk 0:00:07]}  Qe4 {[%clk 0:00:13]} 37. Kf1 {[%clk 0:00:07]}  Qc4+ {[%clk 0:00:11]} 38. R7d3 {[%clk 0:00:07]}  Qe4 {[%clk 0:00:12]} 39. Re3 {[%clk 0:00:06]}  Qc4+ {[%clk 0:00:12]} 40. Rdd3 {[%clk 0:00:03]}  Qc1+ {[%clk 0:00:11]} 41. Ke2 {[%clk 0:00:04]}  Qc2+ {[%clk 0:00:11]} 42. Kf3 {[%clk 0:00:05]}  Qc6+ {[%clk 0:00:11]} 43. Kf4 {[%clk 0:00:04]}  Qf6+ {[%clk 0:00:11]} 44. Ke4 {[%clk 0:00:05]}  Qxf2 {[%clk 0:00:09]} 45. Kd4 {[%clk 0:00:06]}  Qf6+ {[%clk 0:00:09]} 46. Kc5 {[%clk 0:00:06]}  Qc6+ {[%clk 0:00:09]} 47. Kd4 {[%clk 0:00:06]}  Qd6+ {[%clk 0:00:09]} 48. Kc4 {[%clk 0:00:06]}  Qc6+ {[%clk 0:00:10]} 49. Kb3 {[%clk 0:00:06]}  Qb5+ {[%clk 0:00:10]} 50. Kc2 {[%clk 0:00:07]}  Qc5+ {[%clk 0:00:10]} 51. Kd2 {[%clk 0:00:08]}  Qa5+ {[%clk 0:00:10]} 52. Ke2 {[%clk 0:00:09]}  Qh5+ {[%clk 0:00:10]} 53. Rf3 {[%clk 0:00:07]}  Qe5+ {[%clk 0:00:10]} 54. Kf2 {[%clk 0:00:08]}  Qc5+ {[%clk 0:00:10]} 55. Ke2 {[%clk 0:00:07]}  Qc2+ {[%clk 0:00:10]} 56. Ke3 {[%clk 0:00:05]}  Qc5+ {[%clk 0:00:10]} 57. Kf4 {[%clk 0:00:05]}  Qf5+ {[%clk 0:00:10]} 58. Ke3 {[%clk 0:00:05]}  Qc5+ {[%clk 0:00:10]} 59. Rd4 {[%clk 0:00:04]}  Qc3+ {[%clk 0:00:10]} 60. Ke4 {[%clk 0:00:05]}  Qc6+ {[%clk 0:00:10]} 61. Kd3 {[%clk 0:00:04]}  Qxf3+ {[%clk 0:00:08]} 62. Kc4 {[%clk 0:00:04]}  Qc6+ {[%clk 0:00:08]} 63. Kd3 {[%clk 0:00:05]}  Kxg3 {[%clk 0:00:08]} 64. a4 {[%clk 0:00:03]}  Qf6 {[%clk 0:00:07]} 65. h5 {[%clk 0:00:02]}  Qxd4+ {[%clk 0:00:07]} 66. Kxd4 {[%clk 0:00:03]}  gxh5 {[%clk 0:00:08]} 67. Kc5 {[%clk 0:00:03]}  h4 {[%clk 0:00:09]} 68. Kb6 {[%clk 0:00:04]}  h3 {[%clk 0:00:09]} 69. Kxb7 {[%clk 0:00:05]}  h2 {[%clk 0:00:10]} 70. Kxa6 {[%clk 0:00:06]}  h1=Q {[%clk 0:00:10]} 71. Ka7 {[%clk 0:00:07]}  Qh7+ {[%clk 0:00:11]} 72. Kb6 {[%clk 0:00:07]}  Qg8 {[%clk 0:00:11]} 73. a5 {[%clk 0:00:08]}  Qa8 {[%clk 0:00:11]} 74. a6 {[%clk 0:00:09]}  Kf4 {[%clk 0:00:11]} 75. a7 {[%clk 0:00:09]}  Ke5 {[%clk 0:00:11]} 76. Ka6 {[%clk 0:00:10]}  Kd6 {[%clk 0:00:11]} 77. Kb6 {[%clk 0:00:11]}  Kd7 {[%clk 0:00:11]} 78. Ka6 {[%clk 0:00:12]}  Kc7 {[%clk 0:00:12]} 79. Kb5 {[%clk 0:00:12]}  Qxa7 {[%clk 0:00:12]} 80. Kc4 {[%clk 0:00:13]}  Qb6 {[%clk 0:00:13]} 81. Kd5 {[%clk 0:00:13]}  Qd6+ {[%clk 0:00:12]} 82. Kc4 {[%clk 0:00:14]}  Qe5 {[%clk 0:00:13]} 83. Kd3 {[%clk 0:00:14]}  Qf4 {[%clk 0:00:13]} 84. Kc3 {[%clk 0:00:14]}  Qe4 {[%clk 0:00:13]} 85. Kd2 {[%clk 0:00:14]}  Qf3 {[%clk 0:00:13]} 86. Kc2 {[%clk 0:00:15]}  Qe3 {[%clk 0:00:14]} 87. Kd1 {[%clk 0:00:15]}  Qf2 {[%clk 0:00:14]} 88. Kc1 {[%clk 0:00:15]}  Kc6 {[%clk 0:00:15]} 89. Kd1 {[%clk 0:00:16]}  Kc5 {[%clk 0:00:15]} 90. Kc1 {[%clk 0:00:16]}  Kc4 {[%clk 0:00:16]} 91. Kd1 {[%clk 0:00:17]}  Kc3 {[%clk 0:00:17]} 92. Kc1 {[%clk 0:00:17]}  Qc2# {[%clk 0:00:17]} 0-1


[Site "https://www.chess.com"]

[Event "Titled Tuesday Blitz August 17 2021"]
[White "Goncalves, Davi Sulzbacher"]
[Black "Nesterov, Arseniy"]
[WhiteFideId "2154510"]
[BlackFideId "24198455"]
[WhiteElo "2107"]
[BlackElo "2477"]
[Result "1-0"]
[Round "05"]
[TimeControl "180+1"]
[Date "2021.08.17"]
[WhiteClock "0:00:59"]
[BlackClock "0:01:23"]

1. d4 {[%clk 0:03:00]}  d5 {[%clk 0:02:58]} 2. c4 {[%clk 0:03:00]}  e6 {[%clk 0:02:59]} 3. Nc3 {[%clk 0:02:58]}  Bb4 {[%clk 0:02:58]} 4. Nf3 {[%clk 0:02:56]}  dxc4 {[%clk 0:02:58]} 5. e4 {[%clk 0:02:55]}  Nf6 {[%clk 0:02:53]} 6. Bg5 {[%clk 0:02:38]}  c5 {[%clk 0:02:32]} 7. e5 {[%clk 0:01:36]}  h6 {[%clk 0:02:15]} 8. Bh4 {[%clk 0:01:19]}  g5 {[%clk 0:02:12]} 9. Nxg5 {[%clk 0:01:15]}  hxg5 {[%clk 0:02:12]} 10. Bxg5 {[%clk 0:01:15]}  Qxd4 {[%clk 0:02:02]} 11. Qxd4 {[%clk 0:01:06]}  cxd4 {[%clk 0:02:01]} 12. Bxf6 {[%clk 0:01:07]}  dxc3 {[%clk 0:01:49]} 13. O-O-O {[%clk 0:01:07]}  cxb2+ {[%clk 0:01:46]} 14. Kb1 {[%clk 0:01:02]}  O-O {[%clk 0:01:27]} 15. Rd4 {[%clk 0:01:03]}  Re8 {[%clk 0:01:23]} 16. Rh4 {[%clk 0:00:59]} 1-0


[Site "https://www.chess.com"]

[Event "Titled Tuesday Blitz August 17 2021"]
[White "Green, Andrew D"]
[Black "Solon, Nathan"]
[WhiteFideId "2401762"]
[BlackFideId "2017229"]
[WhiteElo "2159"]
[BlackElo "2683"]
[Result "0-1"]
[Round "05"]
[TimeControl "180+1"]
[Date "2021.08.17"]
[WhiteClock "0:00:03"]
[BlackClock "0:00:18"]

1. d4 {[%clk 0:03:00]}  Nf6 {[%clk 0:02:59]} 2. Nf3 {[%clk 0:03:00]}  d5 {[%clk 0:02:59]} 3. Bf4 {[%clk 0:03:00]}  c5 {[%clk 0:02:59]} 4. e3 {[%clk 0:03:00]}  Nc6 {[%clk 0:02:59]} 5. Nbd2 {[%clk 0:03:00]}  cxd4 {[%clk 0:02:55]} 6. exd4 {[%clk 0:02:59]}  Bf5 {[%clk 0:02:54]} 7. Bb5 {[%clk 0:02:46]}  Rc8 {[%clk 0:02:42]} 8. Ne5 {[%clk 0:02:29]}  Bd7 {[%clk 0:02:23]} 9. Nxd7 {[%clk 0:02:24]}  Qxd7 {[%clk 0:02:24]} 10. c3 {[%clk 0:02:12]}  e6 {[%clk 0:02:23]} 11. O-O {[%clk 0:02:11]}  Bd6 {[%clk 0:02:22]} 12. Bg5 {[%clk 0:02:11]}  Be7 {[%clk 0:02:02]} 13. Re1 {[%clk 0:02:08]}  O-O {[%clk 0:02:02]} 14. Qf3 {[%clk 0:01:59]}  a6 {[%clk 0:01:50]} 15. Bd3 {[%clk 0:01:57]}  h6 {[%clk 0:01:46]} 16. Bf4 {[%clk 0:01:48]}  b5 {[%clk 0:01:34]} 17. a3 {[%clk 0:01:46]}  Na5 {[%clk 0:01:30]} 18. g4 {[%clk 0:01:29]}  Nc4 {[%clk 0:01:27]} 19. Rab1 {[%clk 0:01:28]}  Ne8 {[%clk 0:01:13]} 20. Bc2 {[%clk 0:01:16]}  Bg5 {[%clk 0:01:11]} 21. Bxg5 {[%clk 0:00:56]}  hxg5 {[%clk 0:01:12]} 22. Nb3 {[%clk 0:00:55]}  Nf6 {[%clk 0:01:00]} 23. Kg2 {[%clk 0:00:47]}  Qd6 {[%clk 0:00:58]} 24. Nc5 {[%clk 0:00:43]}  Nd2 {[%clk 0:00:56]} 25. Qd3 {[%clk 0:00:34]}  Nxb1 {[%clk 0:00:55]} 26. Bxb1 {[%clk 0:00:33]}  Qf4 {[%clk 0:00:53]} 27. f3 {[%clk 0:00:29]}  g6 {[%clk 0:00:51]} 28. Nxa6 {[%clk 0:00:24]}  Kg7 {[%clk 0:00:51]} 29. h3 {[%clk 0:00:21]}  Nd7 {[%clk 0:00:36]} 30. Rxe6 {[%clk 0:00:16]}  Nf6 {[%clk 0:00:20]} 31. Nc5 {[%clk 0:00:15]}  Rfe8 {[%clk 0:00:18]} 32. Rxe8 {[%clk 0:00:04]}  Rxe8 {[%clk 0:00:19]} 33. Qxb5 {[%clk 0:00:04]}  Qd2+ {[%clk 0:00:18]} 34. Kg3 {[%clk 0:00:03]}  Re1 {[%clk 0:00:18]} 35. Bd3 {[%clk 0:00:03]}  Rg1# {[%clk 0:00:18]} 0-1


[Site "https://www.chess.com"]

[Event "Titled Tuesday Blitz August 17 2021"]
[White "Gunina, Valentina"]
[Black "Popilski, Gil"]
[WhiteFideId "4167570"]
[BlackFideId "2809060"]
[WhiteElo "2399"]
[BlackElo "2537"]
[Result "0-1"]
[Round "05"]
[TimeControl "180+1"]
[Date "2021.08.17"]
[WhiteClock "0:00:04"]
[BlackClock "0:00:08"]

1. d4 {[%clk 0:03:00]}  Nf6 {[%clk 0:02:57]} 2. c4 {[%clk 0:03:00]}  g6 {[%clk 0:02:56]} 3. Nc3 {[%clk 0:03:00]}  d5 {[%clk 0:02:56]} 4. cxd5 {[%clk 0:02:59]}  Nxd5 {[%clk 0:02:55]} 5. e4 {[%clk 0:03:00]}  Nxc3 {[%clk 0:02:55]} 6. bxc3 {[%clk 0:03:00]}  Bg7 {[%clk 0:02:55]} 7. Bc4 {[%clk 0:03:00]}  c5 {[%clk 0:02:54]} 8. Ne2 {[%clk 0:03:00]}  Nc6 {[%clk 0:02:54]} 9. Be3 {[%clk 0:03:00]}  O-O {[%clk 0:02:54]} 10. O-O {[%clk 0:02:59]}  Bg4 {[%clk 0:02:51]} 11. f3 {[%clk 0:02:59]}  Bd7 {[%clk 0:02:50]} 12. Rb1 {[%clk 0:02:52]}  Rc8 {[%clk 0:02:50]} 13. dxc5 {[%clk 0:02:49]}  Qc7 {[%clk 0:02:43]} 14. Bd5 {[%clk 0:02:49]}  Na5 {[%clk 0:02:22]} 15. Bd4 {[%clk 0:02:41]}  e6 {[%clk 0:02:09]} 16. Bb3 {[%clk 0:02:39]}  Rfd8 {[%clk 0:02:00]} 17. Qe1 {[%clk 0:02:37]}  Bb5 {[%clk 0:01:55]} 18. Rb2 {[%clk 0:02:17]}  Bxe2 {[%clk 0:01:32]} 19. Qxe2 {[%clk 0:02:17]}  Rxd4 {[%clk 0:01:28]} 20. cxd4 {[%clk 0:02:16]}  Bxd4+ {[%clk 0:01:27]} 21. Kh1 {[%clk 0:02:01]}  Bxb2 {[%clk 0:01:26]} 22. Qxb2 {[%clk 0:02:01]}  Qxc5 {[%clk 0:01:27]} 23. Rd1 {[%clk 0:01:54]}  b5 {[%clk 0:01:22]} 24. h3 {[%clk 0:01:51]}  Nc4 {[%clk 0:01:20]} 25. Qc3 {[%clk 0:01:43]}  a5 {[%clk 0:01:16]} 26. Bxc4 {[%clk 0:01:35]}  bxc4 {[%clk 0:01:13]} 27. Rd7 {[%clk 0:01:35]}  Qb4 {[%clk 0:00:54]} 28. Qf6 {[%clk 0:01:34]}  Qf8 {[%clk 0:00:47]} 29. Qc3 {[%clk 0:01:33]}  Qb4 {[%clk 0:00:40]} 30. Qf6 {[%clk 0:01:33]}  Rf8 {[%clk 0:00:34]} 31. Kh2 {[%clk 0:01:31]}  Qb8+ {[%clk 0:00:33]} 32. f4 {[%clk 0:01:23]}  Qb1 {[%clk 0:00:32]} 33. Qd4 {[%clk 0:00:46]}  Qxa2 {[%clk 0:00:31]} 34. f5 {[%clk 0:00:46]}  exf5 {[%clk 0:00:27]} 35. exf5 {[%clk 0:00:46]}  Qb3 {[%clk 0:00:26]} 36. Rd8 {[%clk 0:00:35]}  gxf5 {[%clk 0:00:19]} 37. Rd5 {[%clk 0:00:27]}  Qb8+ {[%clk 0:00:17]} 38. Kg1 {[%clk 0:00:26]}  Qb1+ {[%clk 0:00:16]} 39. Kh2 {[%clk 0:00:27]}  Qe4 {[%clk 0:00:15]} 40. Qd2 {[%clk 0:00:26]}  f6 {[%clk 0:00:13]} 41. Rxa5 {[%clk 0:00:24]}  f4 {[%clk 0:00:11]} 42. Qd6 {[%clk 0:00:14]}  c3 {[%clk 0:00:08]} 43. Ra7 {[%clk 0:00:09]}  Qe3 {[%clk 0:00:07]} 44. Qd7 {[%clk 0:00:03]}  Qg3+ {[%clk 0:00:06]} 45. Kh1 {[%clk 0:00:03]}  Qe1+ {[%clk 0:00:07]} 46. Kh2 {[%clk 0:00:04]}  Qg3+ {[%clk 0:00:07]} 47. Kh1 {[%clk 0:00:04]}  Qg6 {[%clk 0:00:08]} 0-1


[Site "https://www.chess.com"]